bitfinex-derivatives/quotes_BTCF0:USTF0_20251120
["timestamp","ask_amount","ask_price","bid_price","bid_amount"]
[1763673915969,0.06676955,87437.0,87436.0,0.05131954]
[1763673917275,0.06676955,87437.0,87436.0,0.00017151]
[1763673918163,0.04809,87421.0,87420.0,0.06402]
[1763673918463,0.08959845,87446.0,87435.0,0.01507]
[1763673918464,0.02521,87436.0,87435.0,0.01507]
[1763673918668,0.04809,87436.0,87435.0,0.06402]
[1763673919265,0.04809,87428.0,87427.0,0.06057491]
[1763673919570,0.04809,87428.0,87427.0,0.05131954]
[1763673920764,0.24703272,87441.0,87427.0,0.05131954]
[1763673920963,0.04809,87436.0,87435.0,0.0754724]
[1763673921270,0.04809,87436.0,87435.0,0.07767043]
[1763673921472,0.04809,87436.0,87435.0,0.04357803]
[1763673921672,0.04809,87436.0,87435.0,0.00219803]
[1763673921863,0.04809,87428.0,87427.0,0.06157501]
[1763673922064,0.04809,87428.0,87427.0,0.06377304]
[1763673922260,0.02521,87428.0,87427.0,0.06277304]
[1763673922465,0.04809,87428.0,87427.0,0.06277304]
[1763673922868,0.04809,87428.0,87427.0,0.04912151]
[1763673923069,0.04809,87428.0,87427.0,0.00017151]
[1763673923272,0.04809,87391.0,87381.0,0.01507]
[1763673923473,0.04809,87382.0,87381.0,0.04357803]
[1763673923663,0.04809,87382.0,87381.0,0.00219803]
[1763673923862,0.02288,87380.0,87372.0,0.01507]
[1763673924183,0.00017161,87385.0,87384.0,0.04895]
[1763673924368,0.00017161,87393.0,87385.0,0.00219803]
[1763673924568,0.04809,87386.0,87385.0,0.00219803]
[1763673925370,0.13973855,87386.0,87385.0,0.00219803]
[1763673925674,0.04809,87386.0,87385.0,0.00219803]
[1763673926079,0.13961025,87386.0,87385.0,0.00319803]
[1763673926268,0.04809,87386.0,87385.0,0.00319803]
[1763673926464,0.04809,87386.0,87385.0,0.001]
[1763673926781,0.04809,87386.0,87385.0,0.002]
[1763673926976,0.04809,87386.0,87385.0,0.00419803]
[1763673927276,0.04809,87386.0,87385.0,0.05314803]
[1763673927975,0.04809,87386.0,87385.0,0.00419803]
[1763673928280,0.14133322,87386.0,87385.0,0.00419803]
[1763673928782,0.14133322,87386.0,87385.0,0.002]
[1763673931179,0.14133322,87386.0,87376.0,0.00011498]
[1763673931180,0.04462,87377.0,87376.0,0.00011498]
[1763673931476,0.03882,87364.0,87340.0,0.01507]
[1763673931672,0.03882,87364.0,87354.0,0.026533]
[1763673931872,0.01941,87360.0,87359.0,0.0577824]
[1763673932082,0.03882,87360.0,87359.0,0.05998043]
[1763673932472,0.01941,87360.0,87359.0,0.05998043]
[1763673932668,0.06112765,87401.0,87370.0,0.01432]
[1763673932873,0.24703272,87400.0,87380.0,0.01432]
[1763673933174,0.0375,87382.0,87381.0,0.00219803]
[1763673933381,0.0375,87371.0,87370.0,0.01651803]
[1763673933774,0.01875,87371.0,87370.0,0.06321803]
[1763673934381,0.0375,87371.0,87370.0,0.02586803]
[1763673934585,0.0375,87371.0,87370.0,0.04018803]
[1763673934776,0.0375,87371.0,87370.0,0.06321803]
[1763673935479,0.24703272,87380.0,87354.0,0.01507]
[1763673935480,0.0375,87355.0,87354.0,0.01507]
[1763673935677,0.01875,87341.0,87340.0,0.06102]
[1763673935984,0.0375,87341.0,87340.0,0.06321803]
[1763673936386,0.0375,87341.0,87330.0,0.0257862]
[1763673936586,0.01875,87332.0,87331.0,0.04889803]
[1763673936778,0.03763443,87332.0,87331.0,0.04889803]
[1763673937573,0.05638443,87332.0,87331.0,0.04889803]
[1763673937785,0.05638443,87332.0,87331.0,0.04989803]
[1763673937987,0.05638443,87332.0,87331.0,0.02686803]
[1763673938190,0.05638443,87332.0,87331.0,0.00419803]
[1763673938884,0.14924512,87332.0,87331.0,0.05089803]
[1763673939383,0.14924512,87332.0,87331.0,0.00419803]
[1763673939586,0.14924512,87332.0,87317.0,0.00010316]
[1763673939587,0.01875,87318.0,87317.0,0.00010316]
[1763673939781,0.0375,87318.0,87317.0,0.00219803]
[1763673940179,0.00017171,87326.0,87325.0,0.0467]
[1763673940383,0.00017171,87326.0,87325.0,0.04889803]
[1763673948992,0.01875,87326.0,87325.0,0.04889803]
[1763673949196,0.0375,87326.0,87325.0,0.04889803]
[1763673950590,0.10959767,87332.0,87325.0,0.00219803]
[1763673950786,0.0375,87332.0,87331.0,0.0581661]
[1763673950986,0.0375,87332.0,87331.0,0.06036413]
[1763673951298,0.05488019,87332.0,87331.0,0.04889803]
[1763673952186,0.1459618,87332.0,87331.0,0.04889803]
[1763673952387,0.0375,87332.0,87331.0,0.06036413]
[1763673952985,0.0375,87332.0,87331.0,0.04889803]
[1763673953196,0.01875,87332.0,87331.0,0.04889803]
[1763673953582,0.03613547,87332.0,87331.0,0.04889803]
[1763673954196,0.05488547,87332.0,87331.0,0.04889803]
[1763673954796,0.14502268,87332.0,87331.0,0.00219803]
[1763673954989,0.0375,87319.0,87318.0,0.06102]
[1763673955293,0.0375,87319.0,87318.0,0.06321803]
[1763673955996,0.0375,87319.0,87318.0,0.07468583]
[1763673956191,0.0375,87319.0,87318.0,0.06421803]
[1763673956989,0.0375,87319.0,87318.0,0.07668583]
[1763673958791,0.0375,87319.0,87318.0,0.06521803]
[1763673959396,0.0375,87319.0,87318.0,0.002]
[1763673959603,0.1285769,87319.0,87318.0,0.002]
[1763673959903,0.0375,87319.0,87318.0,0.002]
[1763673960289,0.0375,87319.0,87300.0,0.01432]
[1763673960290,0.0375,87318.0,87300.0,0.01432]
[1763673960503,0.0375,87302.0,87301.0,0.04889803]
[1763673961102,0.18542664,87310.0,87309.0,0.03799]
[1763673961301,0.0375,87310.0,87309.0,0.03799]
[1763673962201,0.0375,87310.0,87309.0,0.06321803]
[1763673962386,0.0375,87310.0,87309.0,0.00219803]
[1763673962592,0.0375,87310.0,87309.0,0.06005803]
[1763673962899,0.0358,87302.0,87301.0,0.04606]
[1763673963194,0.0358,87302.0,87301.0,0.04625803]
[1763673964400,0.0358,87302.0,87301.0,0.04725803]
[1763673964604,0.01807182,87318.0,87317.0,0.04406]
[1763673964908,0.03597182,87318.0,87317.0,0.04625803]
[1763673965490,0.03597182,87318.0,87317.0,0.00219803]
[1763673965698,0.03597182,87318.0,87317.0,0.02431803]
[1763673965898,0.00017182,87318.0,87317.0,0.04625803]
[1763673966803,0.00522,87354.0,87331.0,0.04406]
[1763673966804,0.05354547,87332.0,87331.0,0.04406]
[1763673967002,0.05354547,87332.0,87331.0,0.04625803]
[1763673967511,0.14394846,87332.0,87331.0,0.04625803]
[1763673967699,0.03616,87332.0,87331.0,0.04625803]
[1763673968002,0.05372389,87332.0,87331.0,0.04625803]
[1763673968503,0.14765753,87332.0,87331.0,0.04625803]
[1763673968991,0.14865753,87332.0,87331.0,0.04625803]
[1763673969995,0.14865753,87332.0,87323.0,0.02229182]
[1763673969996,0.03616,87324.0,87323.0,0.02229182]
[1763673970206,0.03616,87324.0,87323.0,0.04642985]
[1763673971202,0.04117682,87325.0,87324.0,0.04406]
[1763673971401,0.06112765,87330.0,87324.0,0.04406]
[1763673971402,0.05925682,87326.0,87325.0,0.04406]
[1763673971700,0.05925682,87326.0,87325.0,0.04625803]
[1763673972295,0.05925785,87326.0,87325.0,0.04625803]
[1763673972601,0.01808,87326.0,87325.0,0.04625803]
[1763673972803,0.03616,87326.0,87325.0,0.04625803]
[1763673973189,0.03616,87326.0,87325.0,0.02431803]
[1763673974003,0.03616,87326.0,87325.0,0.00219803]
[1763673974209,0.01808,87326.0,87325.0,0.04625803]
[1763673975106,0.14765753,87332.0,87331.0,0.04406]
[1763673975304,0.14765753,87332.0,87331.0,0.04625803]
[1763673975503,0.14765753,87332.0,87331.0,0.02431803]
[1763673976104,0.14865753,87332.0,87331.0,0.02431803]
[1763673976299,0.14865753,87332.0,87331.0,0.00219803]
[1763673977003,0.14865753,87332.0,87331.0,0.02431803]
[1763673977701,0.14865753,87332.0,87331.0,0.00219803]
[1763673978095,0.23016107,87332.0,87331.0,0.00219803]
[1763673978296,0.23016107,87332.0,87331.0,0.04625803]
[1763673978496,0.03616,87328.0,87327.0,0.0138]
[1763673978904,0.03616,87328.0,87327.0,0.06005803]
[1763673979600,0.11249753,87332.0,87331.0,0.04406]
[1763673979790,0.11149753,87332.0,87331.0,0.04625803]
[1763673979997,0.3608,87332.0,87331.0,0.04625803]
[1763673980198,0.48751889,87332.0,87331.0,0.04625803]
[1763673981203,0.48851889,87332.0,87331.0,0.04625803]
[1763673981703,0.50605964,87332.0,87331.0,0.04625803]
[1763673982010,0.58756318,87332.0,87331.0,0.04625803]
[1763673982211,0.50605964,87332.0,87331.0,0.04625803]
[1763673984011,0.50605964,87332.0,87331.0,0.00219803]
[1763673984203,0.03616,87328.0,87327.0,0.05786]
[1763673985208,0.50605964,87332.0,87331.0,0.04406]
[1763673985509,0.46989964,87332.0,87331.0,0.05772413]
[1763673985906,0.46889964,87332.0,87331.0,0.05772413]
[1763673986104,0.43318964,87332.0,87331.0,0.05772413]
[1763673987909,0.43418964,87332.0,87331.0,0.05772413]
[1763673988305,0.43318964,87332.0,87331.0,0.05772413]
[1763673988711,0.10809964,87332.0,87331.0,0.05772413]
[1763673988915,0.06181555,87339.0,87338.0,0.0555252]
[1763673989112,0.06181555,87339.0,87338.0,0.05772323]
[1763673989305,0.10105274,87339.0,87338.0,0.04625803]
[1763673989516,0.42188719,87339.0,87338.0,0.04625803]
[1763673990801,0.04492,87328.0,87327.0,0.05816]
[1763673991111,0.04492,87328.0,87327.0,0.06035803]
[1763673991306,0.3608,87331.0,87330.0,0.04436]
[1763673991507,0.3608,87331.0,87330.0,0.04655803]
[1763673991708,0.40572,87331.0,87330.0,0.04655803]
[1763673992210,0.3836,87331.0,87330.0,0.04655803]
[1763673992816,0.3608,87331.0,87330.0,0.04655803]
[1763673995518,0.46912146,87339.0,87338.0,0.04422]
[1763673995519,0.09096427,87339.0,87338.0,0.04422]
[1763673995716,0.02694877,87345.0,87344.0,0.0467244]
[1763673995913,0.04120796,87350.0,87349.0,0.03526]
[1763673996116,0.04120796,87352.0,87351.0,0.03526]
[1763673996414,0.07630796,87354.0,87353.0,0.03526]
[1763673996618,0.2050019,87354.0,87353.0,0.03745803]
[1763673996922,0.14249394,87354.0,87353.0,0.03745803]
[1763673997528,0.14349394,87354.0,87353.0,0.03745803]
[1763673998110,0.10839394,87354.0,87353.0,0.03745803]
[1763673998911,0.13105394,87354.0,87353.0,0.03745803]
[1763673999112,0.14449394,87354.0,87353.0,0.03745803]
[1763673999617,0.16579394,87354.0,87353.0,0.01982803]
[1763674001723,0.16579394,87354.0,87353.0,0.03745803]
[1763674005825,0.10939394,87354.0,87353.0,0.03745803]
[1763674006228,0.01956361,87354.0,87353.0,0.03745803]
[1763674006428,0.06252361,87354.0,87353.0,0.03745803]
[1763674008227,0.06252361,87354.0,87353.0,0.01982803]
[1763674008830,0.06252361,87354.0,87353.0,0.03745803]
[1763674009226,0.01956361,87354.0,87353.0,0.03745803]
[1763674010924,0.01856361,87354.0,87353.0,0.03745803]
[1763674011231,0.06152361,87354.0,87353.0,0.03745803]
[1763674011830,0.06052361,87354.0,87353.0,0.14849803]
[1763674012132,0.01756361,87354.0,87353.0,0.15996123]
[1763674012333,0.0564,87360.0,87359.0,0.0467224]
[1763674012634,0.0564,87360.0,87359.0,0.04892043]
[1763674013139,0.07420131,87360.0,87359.0,0.04892043]
[1763674013822,0.1669589,87360.0,87359.0,0.04892043]
[1763674014023,0.0564,87360.0,87359.0,0.04892043]
[1763674014231,0.0564,87360.0,87359.0,0.03745803]
[1763674014429,0.0564,87360.0,87359.0,0.00219803]
[1763674014630,0.11563918,87360.0,87359.0,0.03745803]
[1763674014830,0.07453056,87360.0,87359.0,0.03745803]
[1763674015425,0.11563918,87360.0,87359.0,0.03745803]
[1763674016031,0.11563918,87360.0,87359.0,0.01982803]
[1763674016334,0.07453056,87360.0,87359.0,0.00219803]
[1763674016930,0.16754484,87360.0,87359.0,0.00219803]
[1763674018431,0.22922847,87360.0,87359.0,0.00219803]
[1763674018734,0.16754484,87360.0,87359.0,0.00219803]
[1763674020333,0.22922847,87360.0,87359.0,0.00219803]
[1763674021133,0.16754484,87360.0,87359.0,0.00219803]
[1763674023143,0.04292,87346.0,87341.0,0.0114648]
[1763674023640,0.04292,87346.0,87338.0,0.0114651]
[1763674023935,0.04292,87346.0,87338.0,0.0114652]
[1763674024240,0.04292,87346.0,87340.0,0.0114649]
[1763674024538,0.04292,87346.0,87345.0,0.00117172]
[1763674024740,0.04292,87346.0,87345.0,0.00336975]
[1763674025338,0.04292,87346.0,87345.0,0.00436975]
[1763674025534,0.04292,87346.0,87345.0,0.01583405]
[1763674025729,0.04292,87346.0,87345.0,0.05892405]
[1763674025929,0.14479942,87355.0,87354.0,0.0555531]
[1763674026148,0.04292,87355.0,87354.0,0.05775113]
[1763674029152,0.04292,87355.0,87354.0,0.05875113]
[1763674029342,0.04292,87355.0,87354.0,0.00319803]
[1763674030032,0.04292,87355.0,87354.0,0.02500803]
[1763674030238,0.04292,87355.0,87354.0,0.03647113]
[1763674030445,0.04292,87355.0,87354.0,0.05875113]
[1763674030846,0.08247753,87356.0,87355.0,0.04409]
[1763674031038,0.11038833,87360.0,87359.0,0.0555524]
[1763674031240,0.04292,87360.0,87359.0,0.04628803]
[1763674031547,0.05588,87360.0,87359.0,0.00219803]
[1763674031743,0.41668,87360.0,87359.0,0.00219803]
[1763674032148,0.50767749,87360.0,87359.0,0.00219803]
[1763674033253,0.50767749,87360.0,87359.0,0.02400803]
[1763674033649,0.51263634,87360.0,87359.0,0.05775043]
[1763674033855,0.15183634,87360.0,87359.0,0.05775043]
[1763674036964,0.10891634,87360.0,87359.0,0.05775043]
[1763674037156,0.04292,87360.0,87359.0,0.05775043]
[1763674038353,0.00017172,87362.0,87361.0,0.04409]
[1763674038554,0.06200492,87362.0,87361.0,0.40708803]
[1763674038755,0.00017172,87362.0,87361.0,0.40708803]
[1763674039463,0.0183984,87362.0,87361.0,0.40708803]
[1763674039764,0.0613184,87362.0,87361.0,0.51808803]
[1763674041156,0.0613184,87362.0,87361.0,0.40708803]
[1763674042764,0.0183984,87362.0,87361.0,0.40708803]
[1763674042966,0.0613184,87362.0,87361.0,0.40708803]
[1763674043869,0.0613184,87362.0,87361.0,0.41855023]
[1763674044565,0.0183984,87362.0,87361.0,0.41855023]
[1763674045263,0.05959597,87362.0,87361.0,0.41855023]
[1763674046465,0.08075597,87362.0,87361.0,0.41855023]
[1763674047464,0.0183984,87362.0,87361.0,0.41855023]
[1763674047660,0.0619084,87362.0,87361.0,0.40708803]
[1763674047970,0.10310597,87362.0,87361.0,0.51808803]
[1763674048871,0.10310597,87362.0,87361.0,0.40708803]
[1763674049064,0.0619084,87362.0,87361.0,0.00219803]
[1763674049572,0.0619084,87362.0,87361.0,0.02518803]
[1763674050374,0.0619084,87362.0,87361.0,0.04635803]
[1763674051268,0.04423,87354.0,87353.0,0.38303]
[1763674051569,0.04423,87354.0,87353.0,0.40749803]
[1763674054475,0.04423,87354.0,87345.0,0.04666172]
[1763674054476,0.04564,87346.0,87345.0,0.04666172]
[1763674054677,0.05862,87346.0,87345.0,0.00236975]
[1763674055772,0.05862,87346.0,87345.0,0.00336975]
[1763674055969,0.05862,87346.0,87345.0,0.00117172]
[1763674056786,0.05862,87346.0,87345.0,0.00217172]
[1763674057278,0.04564,87336.0,87335.0,0.04649]
[1763674057464,0.46822509,87336.0,87335.0,0.04649]
[1763674057668,0.40644,87336.0,87335.0,0.04649]
[1763674058265,0.40644,87336.0,87335.0,0.04868803]
[1763674058466,0.40644,87336.0,87335.0,0.04968803]
[1763674059277,0.56860971,87336.0,87335.0,0.001]
[1763674059580,0.05247,87328.0,87313.0,0.3608]
[1763674059978,0.41327,87328.0,87313.0,0.3608]
[1763674060482,0.04564,87314.0,87313.0,0.40729]
[1763674060774,0.04564,87314.0,87313.0,0.40948803]
[1763674061286,0.04564,87314.0,87298.0,0.3608]
[1763674061287,0.04564,87299.0,87298.0,0.40729]
[1763674061471,0.04564,87299.0,87298.0,0.40948803]
[1763674061980,0.32943923,87317.0,87312.0,0.03677]
[1763674062186,0.01346,87313.0,87312.0,0.06212803]
[1763674062576,0.1058731,87313.0,87312.0,0.06212803]
[1763674062880,0.01346,87313.0,87312.0,0.00219803]
[1763674063284,0.01346,87305.0,87304.0,0.05993]
[1763674063473,0.01346,87305.0,87304.0,0.06212803]
[1763674064676,0.01346,87305.0,87304.0,0.06312803]
[1763674065073,0.37426,87305.0,87304.0,0.01663803]
[1763674065282,0.37426,87305.0,87304.0,0.01763803]
[1763674065482,0.37426,87305.0,87304.0,0.00419803]
[1763674065876,0.37426,87305.0,87304.0,0.002]
[1763674066072,0.37426,87305.0,87304.0,0.001]
[1763674066281,0.37426,87305.0,87304.0,0.002]
[1763674067280,0.37426,87305.0,87304.0,0.001]
[1763674067281,0.37526,87305.0,87304.0,0.001]
[1763674067981,0.01346,87297.0,87296.0,0.01344]
[1763674068185,0.01346,87297.0,87296.0,0.01563803]
[1763674068186,0.37426,87297.0,87296.0,0.01563803]
[1763674068384,0.01346,87289.0,87288.0,0.03677]
[1763674068571,0.01346,87289.0,87288.0,0.06212803]
[1763674068776,0.37426,87289.0,87288.0,0.06212803]
[1763674068970,0.45140351,87289.0,87288.0,0.06212803]
[1763674069180,0.4699956,87289.0,87288.0,0.06212803]
[1763674070489,0.4834556,87289.0,87288.0,0.06212803]
[1763674071385,0.4767256,87289.0,87288.0,0.06212803]
[1763674071781,0.1159256,87289.0,87288.0,0.06212803]
[1763674072291,0.1226556,87289.0,87288.0,0.06212803]
[1763674072588,0.1091956,87289.0,87288.0,0.06212803]
[1763674072788,0.37426,87296.0,87295.0,0.04649]
[1763674072987,0.37426,87296.0,87295.0,0.04868803]
[1763674073185,0.39292137,87296.0,87295.0,0.00219803]
[1763674073876,0.39292137,87296.0,87295.0,0.02552803]
[1763674074589,0.39292137,87296.0,87295.0,0.04868803]
[1763674075390,0.10859706,87296.0,87295.0,0.04868803]
[1763674075689,0.001,87296.0,87295.0,0.04868803]
[1763674075885,0.01446,87296.0,87295.0,0.04868803]
[1763674076295,0.001,87296.0,87295.0,0.04868803]
[1763674076483,0.00017182,87297.0,87295.0,0.04868803]
[1763674076683,0.01363182,87297.0,87296.0,0.05993]
[1763674076880,0.10735542,87297.0,87296.0,0.06212803]
[1763674077078,0.03249139,87297.0,87296.0,0.06212803]
[1763674077993,0.11087428,87297.0,87296.0,0.06212803]
[1763674079689,0.3608,87298.0,87297.0,0.0579606]
[1763674079992,0.04564,87298.0,87297.0,0.04868803]
[1763674080383,0.25171644,87306.0,87304.0,0.05993]
[1763674080580,0.27079183,87306.0,87305.0,0.00219803]
[1763674080783,0.36024021,87306.0,87305.0,0.00219803]
[1763674080996,0.36024021,87306.0,87297.0,0.00017182]
[1763674081290,0.36024021,87306.0,87297.0,0.00236985]
[1763674081492,0.11104,87305.0,87297.0,0.00017182]
[1763674081689,0.3608,87298.0,87297.0,0.00017182]
[1763674081891,0.3608,87298.0,87283.0,0.3608]
[1763674082094,0.3608,87298.0,87273.0,0.3608]
[1763674082095,0.3608,87290.0,87273.0,0.3608]
[1763674082289,0.3608,87274.0,87256.0,0.42073]
[1763674082588,0.3608,87266.0,87257.0,0.02478803]
[1763674082788,0.3608,87266.0,87257.0,0.04638803]
[1763674082991,0.3608,87266.0,87257.0,0.00219803]
[1763674083694,0.3608,87258.0,87248.0,0.05763]
[1763674083881,0.3608,87258.0,87257.0,0.001]
[1763674084398,0.45083929,87258.0,87257.0,0.001]
[1763674084692,0.45083929,87258.0,87257.0,0.002]
[1763674085190,0.45083929,87258.0,87243.0,0.3608]
[1763674085393,0.3608,87248.0,87246.0,0.0138]
[1763674085582,0.3608,87248.0,87237.0,0.3608]
[1763674085782,0.3608,87241.0,87211.0,0.0114819]
[1763674085989,0.3608,87241.0,87232.0,0.04419]
[1763674085990,0.3608,87233.0,87232.0,0.04419]
[1763674086198,0.3608,87233.0,87232.0,0.00219803]
[1763674086389,0.37910393,87233.0,87232.0,0.00219803]
[1763674086585,0.37910393,87233.0,87210.0,0.0138]
[1763674086790,0.3608,87220.0,87219.0,0.00219803]
[1763674087295,0.3608,87220.0,87219.0,0.04638803]
[1763674087689,0.3608,87220.0,87219.0,0.02478803]
[1763674087884,0.3608,87220.0,87219.0,0.00219803]
[1763674088085,0.3608,87220.0,87219.0,0.04738803]
[1763674088690,0.3608,87220.0,87219.0,0.04838803]
[1763674088691,0.09147404,87220.0,87219.0,0.04838803]
[1763674088890,0.3608,87225.0,87224.0,0.04419]
[1763674089089,0.3608,87225.0,87224.0,0.04638803]
[1763674090292,0.37910393,87233.0,87232.0,0.04419]
[1763674090494,0.37910393,87233.0,87232.0,0.04638803]
[1763674091203,0.37910393,87233.0,87232.0,0.00219803]
[1763674091497,0.46881078,87233.0,87230.0,0.0138]
[1763674091699,0.3608,87231.0,87220.0,0.0138]
[1763674091898,0.3608,87231.0,87210.0,0.05799]
[1763674091899,0.3608,87221.0,87210.0,0.05799]
[1763674092197,0.3608,87211.0,87210.0,0.06018803]
[1763674092998,0.3608,87211.0,87210.0,0.06118803]
[1763674093799,0.3608,87211.0,87210.0,0.06218803]
[1763674094196,0.3608,87221.0,87220.0,0.05799]
[1763674094396,0.3608,87221.0,87220.0,0.06018803]
[1763674094992,0.3608,87221.0,87220.0,0.01599803]
[1763674095199,0.3608,87221.0,87210.0,0.03739]
[1763674095402,0.3608,87221.0,87220.0,0.0138]
[1763674095705,0.3608,87221.0,87220.0,0.06018803]
[1763674097402,0.00017193,87224.0,87223.0,0.04419]
[1763674097598,0.00017193,87224.0,87223.0,0.04638803]
[1763674098293,0.00017193,87224.0,87223.0,0.40718803]
[1763674099507,0.00017193,87224.0,87223.0,0.00219803]
[1763674099698,0.00017193,87224.0,87204.0,0.3608]
[1763674099699,0.00017193,87224.0,87210.0,0.03639]
[1763674099902,0.3608,87219.0,87216.0,0.02478803]
[1763674100311,0.3608,87219.0,87218.0,0.04419]
[1763674100609,0.3608,87219.0,87218.0,0.04638803]
[1763674102099,0.3608,87219.0,87218.0,0.00219803]
[1763674103208,0.3608,87219.0,87218.0,0.04638803]
[1763674104706,0.3608,87219.0,87218.0,0.04738803]
[1763674104911,0.3608,87219.0,87218.0,0.001]
[1763674105901,0.3608,87219.0,87210.0,0.0138]
[1763674106202,0.3608,87212.0,87211.0,0.02259]
[1763674106406,0.3608,87212.0,87210.0,0.0138]
[1763674106708,0.3608,87212.0,87204.0,0.3608]
[1763674106903,0.3608,87212.0,87205.0,0.00219803]
[1763674107904,0.3608,87212.0,87211.0,0.001]
[1763674108308,0.3608,87212.0,87210.0,0.001]
[1763674108906,0.3608,87212.0,87205.0,0.04738803]
[1763674109716,0.3608,87212.0,87205.0,0.04638803]
[1763674110912,0.3608,87212.0,87205.0,0.00219803]
[1763674111110,0.3608,87212.0,87205.0,0.01368063]
[1763674111312,0.3608,87212.0,87205.0,0.02478803]
[1763674111618,0.3608,87212.0,87210.0,0.0138]
[1763674112218,0.04090595,87211.0,87210.0,0.01599803]
[1763674112415,0.40170595,87212.0,87211.0,0.0453]
[1763674112615,0.3608,87212.0,87211.0,0.04749803]
[1763674113821,0.04090595,87221.0,87211.0,0.04749803]
[1763674114017,0.04090595,87226.0,87223.0,0.0594903]
[1763674114319,0.04107788,87224.0,87223.0,0.05020803]
[1763674115006,0.00017193,87224.0,87223.0,0.05020803]
[1763674115617,0.00117193,87224.0,87223.0,0.05020803]
[1763674115816,1.93e-06,87224.0,87223.0,0.05020803]
[1763674117118,0.04144177,87232.0,87231.0,0.04801]
[1763674117424,0.04144177,87232.0,87231.0,0.05020803]
[1763674117611,0.04188177,87232.0,87231.0,0.05020803]
[1763674117923,0.04232177,87232.0,87231.0,0.05020803]
[1763674118117,0.04232177,87232.0,87231.0,0.03330803]
[1763674118323,0.05090996,87232.0,87231.0,0.04874267]
[1763674119813,0.05090996,87232.0,87231.0,0.06022197]
[1763674120014,0.02617996,87232.0,87231.0,0.06022197]
[1763674121314,0.05090996,87232.0,87231.0,0.06022197]
[1763674121625,0.05090996,87232.0,87231.0,0.04874267]
[1763674123711,0.00017193,87232.0,87231.0,0.04874267]
[1763674123918,0.0242523,87239.0,87232.0,0.0114791]
[1763674124117,0.01377,87255.0,87252.0,0.0114765]
[1763674124420,0.01596803,87255.0,87254.0,0.01220887]
[1763674124621,0.03446894,87255.0,87254.0,0.37300887]
[1763674125125,0.08300894,87255.0,87254.0,0.36153267]
[1763674125423,0.08400894,87255.0,87254.0,0.36153267]
[1763674125624,0.08500894,87255.0,87254.0,0.36153267]
[1763674127325,0.03646894,87255.0,87254.0,0.36153267]
[1763674129025,0.06027894,87255.0,87254.0,0.36153267]
[1763674129326,0.08500894,87255.0,87254.0,0.36153267]
[1763674132325,0.08500894,87255.0,87246.0,0.00017193]
[1763674132326,0.04854,87247.0,87246.0,0.00017193]
[1763674132628,0.05073803,87247.0,87246.0,1.93e-06]
[1763674135020,0.04854,87224.0,87223.0,0.11108]
[1763674135229,0.02600803,87224.0,87223.0,0.11181267]
[1763674136522,0.02600803,87224.0,87223.0,0.11281267]
[1763674136724,0.05073803,87224.0,87223.0,0.11381267]
[1763674136920,0.05073803,87224.0,87223.0,0.00273267]
[1763674141521,0.05073803,87224.0,87223.0,0.002]
[1763674141731,0.04854,87216.0,87215.0,0.00017193]
[1763674141931,0.05073803,87216.0,87215.0,0.00017193]
[1763674142834,0.04921,87203.0,87199.0,0.0114835]
[1763674143025,0.05140803,87203.0,87202.0,0.36153267]
[1763674143834,0.05140803,87203.0,87202.0,0.36610267]
[1763674144135,0.01541,87210.0,87209.0,0.0204322]
[1763674144338,0.00219803,87210.0,87209.0,0.02116487]
[1763674144535,0.00017193,87211.0,87210.0,0.00895]
[1763674144727,0.00017193,87211.0,87210.0,0.00968267]
[1763674145125,0.37457,87237.0,87227.0,0.0204298]
[1763674145126,0.06298,87228.0,87227.0,0.0204298]
[1763674145438,0.06298,87228.0,87227.0,0.02116247]
[1763674145439,0.00219803,87228.0,87227.0,0.02116247]
[1763674146235,0.05240803,87228.0,87227.0,0.02116247]
[1763674146934,0.05140803,87228.0,87227.0,0.02116247]
[1763674147534,0.05140803,87228.0,87227.0,0.00968267]
[1763674147729,0.05140803,87228.0,87227.0,0.00073267]
[1763674148331,0.05140803,87228.0,87227.0,0.00530267]
[1763674148524,0.05140803,87228.0,87227.0,0.00968267]
[1763674149837,0.00219803,87228.0,87227.0,0.00968267]
[1763674150239,0.00017193,87236.0,87235.0,0.0204287]
[1763674150432,0.00236996,87236.0,87235.0,0.02116137]
[1763674150628,0.02752996,87236.0,87235.0,0.02116137]
[1763674150841,0.05157996,87236.0,87235.0,0.02116137]
[1763674151231,0.05157996,87236.0,87235.0,0.00968267]
[1763674152235,0.02752996,87236.0,87235.0,0.00968267]
[1763674152432,0.05157996,87236.0,87235.0,0.00968267]
[1763674152632,0.05157996,87236.0,87235.0,0.00530267]
[1763674153341,0.05157996,87236.0,87235.0,0.00968267]
[1763674157342,0.00017193,87236.0,87235.0,0.00968267]
[1763674159039,0.00017193,87236.0,87235.0,0.01068267]
[1763674159941,0.00017193,87236.0,87235.0,0.00968267]
[1763674161539,0.04938193,87236.0,87235.0,0.00968267]
[1763674161743,0.05157996,87236.0,87235.0,0.00968267]
[1763674162541,0.02752996,87236.0,87235.0,0.01068267]
[1763674163339,0.05157996,87236.0,87235.0,0.01068267]
[1763674164350,0.05157996,87236.0,87235.0,0.00968267]
[1763674165553,0.05157996,87236.0,87235.0,0.11177267]
[1763674166358,0.05157996,87236.0,87235.0,0.12072267]
[1763674166852,0.06462,87246.0,87245.0,0.0204274]
[1763674167052,0.06462,87246.0,87245.0,0.38196007]
[1763674167053,0.06681803,87246.0,87245.0,0.38196007]
[1763674169548,0.04276803,87246.0,87245.0,0.38196007]
[1763674169855,0.06681803,87246.0,87245.0,0.38196007]
[1763674173159,0.04600193,87254.0,87252.0,0.0114764]
[1763674173349,0.04802803,87253.0,87252.0,0.0114764]
[1763674173656,0.04802803,87253.0,87252.0,0.01220907]
[1763674175946,0.40882803,87253.0,87252.0,0.00073267]
[1763674176155,0.04583,87238.0,87237.0,0.00017193]
[1763674176359,0.04802803,87238.0,87237.0,0.00017193]
[1763674176655,0.04583,87233.0,87232.0,0.3608]
[1763674176854,0.04802803,87233.0,87232.0,0.3608]
[1763674177651,0.02563803,87233.0,87232.0,0.36153267]
[1763674178266,0.00219803,87233.0,87232.0,0.36153267]
[1763674178456,0.00219803,87233.0,87232.0,0.39078294]
[1763674178652,0.02563803,87233.0,87232.0,0.39078294]
[1763674178847,0.04802803,87233.0,87232.0,0.39078294]
[1763674179156,0.05895,87240.0,87239.0,0.0114782]
[1763674179361,0.06114803,87240.0,87239.0,0.37301087]
[1763674180056,0.03656,87248.0,87247.0,0.0114772]
[1763674180256,0.03656,87248.0,87247.0,0.01220987]
[1763674180853,0.03656,87248.0,87247.0,0.12324987]
[1763674181054,0.03875803,87248.0,87247.0,0.12324987]